bitfinex-derivatives/quotes_SOLF0:USTF0_20260227
["timestamp","ask_amount","ask_price","bid_price","bid_amount"]
[1772183852940,10.2733,87.603,87.543,5.38819549]
[1772183854037,10.2733,87.603,87.545,5.38819567]
[1772183855043,10.2733,87.603,87.547,5.38549962]
[1772183855746,10.2742,87.596,87.55,5.38549962]
[1772183856147,10.275,87.589,87.55,5.38549962]
[1772183856845,10.275,87.589,87.536,5.37910248]
[1772183857940,10.2757,87.582,87.536,5.37910248]
[1772183860247,10.2757,87.582,87.536,15.66010248]
[1772183861842,10.2748,87.59,87.536,15.66010248]
[1772183862146,10.2748,87.59,87.545,10.28]
[1772183862641,10.2748,87.59,87.538,10.2809]
[1772183863350,13.61233284,87.59,87.538,10.2809]
[1772183864445,13.61233284,87.59,87.538,15.65583447]
[1772183864939,21.22884026,87.684,87.296,110.76785517]
[1772183864940,3.33753284,87.6,87.55,3.33753284]
[1772183865140,3.33753284,87.61,87.551,5.37567945]
[1772183865846,3.33753284,87.62,87.561,5.37567962]
[1772183866047,3.33753284,87.63,87.571,5.37567962]
[1772183867051,10.2704,87.628,87.581,10.2758]
[1772183868950,3.33753284,87.66,87.601,5.38340983]
[1772183870053,206.20544396,87.659,87.609,10.2725]
[1772183870647,206.20544396,87.659,87.601,5.38340983]
[1772183872149,10.2676,87.652,87.601,5.38340983]
[1772183872350,195.93874396,87.659,87.601,5.38340983]
[1772183872944,3.33753284,87.65,87.601,5.38340983]
[1772183873451,10.2684,87.645,87.601,5.38340983]
[1772183874754,10.2692,87.638,87.601,5.38340983]
[1772183875554,10.2683,87.645,87.601,5.38340983]
[1772183875954,3.33753284,87.65,87.601,5.38340983]
[1772183876151,10.2692,87.638,87.601,5.38340983]
[1772183877055,10.2692,87.638,87.591,5.4108224]
[1772183877958,10.2692,87.638,87.592,15.68532251]
[1772183878160,10.2692,87.638,87.593,5.41082251]
[1772183878661,10.2684,87.645,87.595,5.41082251]
[1772183879361,10.2675,87.653,87.604,5.40402286]
[1772183879660,3.33753284,87.65,87.604,5.40402286]
[1772183880259,3.33753284,87.64,87.597,5.40402297]
[1772183880453,3.33753284,87.64,87.591,5.40402297]
[1772183880658,20.5275,87.685,87.601,5.40402297]
[1772183880963,10.2666,87.66,87.616,5.4041246]
[1772183881259,3.33753284,87.68,87.631,5.4041246]
[1772183881757,3.33753284,87.67,87.631,5.4041246]
[1772183882462,10.2652,87.673,87.631,5.4041246]
[1772183882662,3.33753284,87.68,87.633,5.4086221]
[1772183882968,3.33753284,87.69,87.633,5.4086221]
[1772183883362,3.33753284,87.7,87.641,5.4086221]
[1772183883562,20.5129,87.747,87.651,5.4086221]
[1772183883563,3.33753284,87.71,87.651,5.4086221]
[1772183883962,3.33753284,87.71,87.655,5.4086222]
[1772183884162,3.33753284,87.7,87.655,5.4086222]
[1772183886063,3.33753284,87.7,87.656,10.2669]
[1772183886271,3.33753284,87.69,87.641,5.42117766]
[1772183887872,3.33753284,87.69,87.648,10.2679]
[1772183888670,3.33753284,87.66,87.611,5.43351272]
[1772183889468,3.33753284,87.65,87.611,5.43351272]
[1772183891172,5.13163374,87.699,87.587,10.2751]
[1772183891173,3.33753284,87.63,87.587,10.2751]
[1772183892376,3.33753284,87.63,87.587,15.69608779]
[1772183892878,3.33753284,87.63,87.587,5.42098779]
[1772183897382,3.33753284,87.63,87.588,5.42975394]
[1772183903882,10.2704,87.628,87.588,5.42975394]
[1772183904280,10.2704,87.628,87.537,34.26]
[1772183904281,3.33753284,87.61,87.573,5.42138376]
[1772183904483,3.33753284,87.59,87.541,5.42138376]
[1772183904681,3.33753284,87.58,87.541,5.42138376]
[1772183904881,3.33753284,87.57,87.541,5.42138376]
[1772183905088,3.33753284,87.57,87.511,5.42195506]
[1772183905886,3.33753284,87.57,87.526,5.42195512]
[1772183906382,3.33753284,87.57,87.487,55.45186293]
[1772183906383,8.27101475,87.622,87.54,3.33753284]
[1772183906683,3.33753284,87.6,87.541,5.42195512]
[1772183907088,3.33753284,87.59,87.55,5.43509948]
[1772183909189,10.2736,87.601,87.55,5.43509948]
[1772183910491,10.2736,87.601,87.552,10.2792]
[1772183910692,10.2736,87.601,87.553,5.43384767]
[1772183911191,8.93814973,87.62,87.556,10.2787]
[1772183911192,10.2725,87.61,87.556,10.2787]
[1772183911392,10.2725,87.61,87.557,5.4354738]
[1772183912294,10.2716,87.618,87.559,5.43547385]
[1772183913496,10.2724,87.611,87.565,5.40810799]
[1772183915996,10.2732,87.604,87.565,5.40810799]
[1772183919094,10.2723,87.612,87.565,5.40810799]
[1772183921190,10.2733,87.604,87.565,5.40810799]
[1772183921694,10.2739,87.598,87.565,5.40810799]
[1772183923604,10.273,87.606,87.565,5.40810799]
[1772183931511,3.33584326,87.62,87.567,5.37729347]
[1772183933010,3.33584326,87.61,87.571,5.37618796]
[1772183935017,3.33584326,87.61,87.573,15.64831001]
[1772183935217,3.33584326,87.62,87.574,5.37151001]
[1772183937016,3.33584326,87.62,87.578,5.36991325]
[1772183937219,3.33584326,87.62,87.561,5.36991325]
[1772183937917,10.2724,87.611,87.564,5.36991332]
[1772183938112,3.33584326,87.61,87.564,5.36991332]
[1772183938314,3.33584326,87.62,87.564,5.36991332]
[1772183939719,10.2725,87.61,87.568,5.3711722]
[1772183940716,10.2725,87.61,87.571,5.37117227]
[1772183942017,10.2732,87.604,87.571,5.37117227]
[1772183942622,10.2724,87.611,87.571,5.37117227]
[1772183943016,3.33584326,87.61,87.571,5.37117227]
[1772183943217,10.2728,87.607,87.571,5.37117227]
[1772183943624,3.33584326,87.61,87.571,5.37117227]
[1772183944525,3.33584326,87.62,87.571,5.37117227]
[1772183945926,10.2726,87.609,87.571,5.37117227]
[1772183946127,3.33584326,87.62,87.573,5.36974029]
[1772183946522,3.33584326,87.63,87.573,5.36974029]
[1772183946920,3.33584326,87.63,87.588,5.35382893]
[1772183948022,10.2704,87.628,87.588,5.35382893]
[1772183948532,10.2704,87.628,87.588,15.62882893]
[1772183948826,20.5323,87.664,87.55,20.5588]
[1772183948827,10.2694,87.637,87.589,5.3535269]
[1772183949936,10.2694,87.637,87.595,5.35352697]
[1772183950432,3.33584326,87.64,87.597,5.35352697]
[1772183950638,3.33584326,87.65,87.597,5.35352697]
[1772183951040,3.33584326,87.65,87.601,5.34979785]
[1772183951440,20.5274,87.686,87.601,5.34979785]
[1772183951441,3.33584326,87.64,87.601,5.34979785]
[1772183952742,10.2673,87.655,87.601,5.34979785]
[1772183952942,10.2673,87.655,87.611,5.35055099]
[1772183953241,3.33584326,87.67,87.611,5.35055099]
[1772183953942,10.2663,87.663,87.611,5.35055099]
[1772183954443,10.267,87.657,87.611,5.35055099]
[1772183956544,10.267,87.657,87.613,5.45800916]
[1772183957745,10.267,87.657,87.615,5.47256668]
[1772183959541,3.33584326,87.66,87.617,5.47690155]
[1772183961046,3.33584326,87.66,87.619,5.47848362]
[1772183962348,3.33584326,87.66,87.621,5.47848363]
[1772183963045,10.267,87.657,87.621,5.47848363]
[1772183963245,3.33584326,87.66,87.621,5.47848363]
[1772183963850,10.2668,87.658,87.621,5.47848363]
[1772183967246,3.33584326,87.65,87.61,5.47926149]
[1772183967453,3.33584326,87.64,87.6,5.47926149]
[1772183967846,10.2699,87.633,87.586,5.4792615]
[1772183968552,10.2699,87.633,87.588,5.4792615]
[1772183969242,10.2706,87.627,87.588,5.4792615]
[1772183970153,10.2696,87.635,87.588,5.4792615]
[1772183971452,10.2696,87.635,87.557,21.15350535]
[1772183971453,10.2686,87.644,87.6,3.33584326]
[1772183971854,10.2686,87.644,87.601,5.46398602]
[1772183972755,3.33584326,87.65,87.605,5.46398602]
[1772183973152,10.2669,87.658,87.605,5.46398602]
[1772183974255,10.2669,87.658,87.553,34.26]
[1772183974256,10.2669,87.658,87.611,5.45700481]
[1772183974647,10.2669,87.658,87.613,5.45700481]
[1772183975959,3.33584326,87.67,87.615,5.47885965]
[1772183977052,10.2656,87.669,87.625,10.2707]
[1772183977760,3.33584326,87.66,87.625,10.2707]
[1772183978262,3.33584326,87.66,87.618,5.49504568]
[1772183979062,10.2668,87.659,87.618,5.49504568]
[1772183981657,3.33584326,87.66,87.618,5.49504568]
[1772183982264,3.33584326,87.66,87.621,5.48074506]
[1772183983357,3.33187062,87.66,87.621,5.48074506]
[1772183983557,3.33187062,87.67,87.624,5.48710888]
[1772183984258,3.33187062,87.66,87.624,5.48710888]
[1772183987773,10.2657,87.668,87.624,5.48710888]
[1772183988672,10.2657,87.668,87.625,5.46678359]
[1772183989868,21.35168404,87.689,87.54,21.25096084]
[1772183989869,3.33187062,87.63,87.54,21.25096084]
[1772183990071,3.33187062,87.61,87.551,21.25096084]
[1772183990271,21.22130315,87.685,87.515,159.9659]
[1772183990272,3.33187062,87.64,87.58,3.33187062]
[1772183990574,10.2681,87.647,87.591,21.25096084]
[1772183990975,3.33187062,87.64,87.591,21.25096084]
[1772183991474,10.2681,87.647,87.591,21.25096084]
[1772183991475,3.33187062,87.63,87.591,21.25096084]
[1772183992673,3.33187062,87.62,87.578,21.20850208]
[1772183993079,3.33187062,87.63,87.578,21.20850208]
[1772183994078,3.33187062,87.64,87.589,21.20850209]
[1772183994470,3.33187062,87.62,87.569,21.20850209]
[1772183994672,3.33187062,87.6,87.569,21.20850209]
[1772183994873,3.33187062,87.61,87.569,21.20850209]
[1772183995074,3.33187062,87.62,87.569,21.20850209]
[1772183995482,8.57755912,87.647,87.571,21.21767162]
[1772183995782,3.33187062,87.62,87.579,21.21767162]
[1772183995980,3.33187062,87.63,87.579,21.21767162]
[1772183996980,3.33187062,87.63,87.581,21.18642129]
[1772183997579,3.33187062,87.63,87.584,21.18642129]
[1772183998975,3.33187062,87.63,87.587,10.275]
[1772183999182,3.33187062,87.63,87.588,21.18667059]
[1772183999987,3.33187062,87.63,87.591,21.18667062]
[1772184000481,3.33187062,87.63,87.592,10.2745]
[1772184000679,8.57251813,87.664,87.593,21.18667062]
[1772184000880,3.33187062,87.63,87.593,21.18667062]
[1772184001075,3.33187062,87.64,87.593,21.18667062]
[1772184001579,3.33187062,87.64,87.545,28.28978928]
[1772184001580,3.33187062,87.62,87.579,21.18709371]
[1772184001779,3.33187062,87.61,87.579,21.18709371]
[1772184002184,19.22646386,87.648,87.579,21.18709371]
[1772184002380,3.33187062,87.63,87.579,21.18709371]
[1772184002684,3.33187062,87.63,87.58,10.2759]
[1772184002878,3.33187062,87.63,87.581,21.20110321]
[1772184003873,3.33187062,87.63,87.586,10.2752]
[1772184004075,3.33187062,87.63,87.587,21.20110323]
[1772184004483,3.33187062,87.63,87.589,21.20110323]
[1772184005183,10.65558392,87.671,87.536,34.26]
[1772184005184,3.33187062,87.65,87.598,21.21779938]
[1772184006288,3.33187062,87.65,87.606,10.2728]
[1772184006887,10.2677,87.651,87.607,21.21131522]
[1772184007376,13.59857062,87.66,87.609,21.21131522]
[1772184009384,10.2667,87.66,87.613,21.2127218]
[1772184009579,195.22130315,87.71,87.613,21.2127218]
[1772184009580,8.57087994,87.676,87.613,21.2127218]
[1772184009780,3.33187062,87.65,87.591,21.21272182]
[1772184009984,3.33187062,87.63,87.595,10.2741]
[1772184010193,3.33187062,87.63,87.591,21.21272182]
[1772184012189,3.33187062,87.64,87.591,21.21272182]
[1772184012389,3.33187062,87.63,87.591,21.21272182]
[1772184012886,3.33187062,87.63,87.599,10.2736]
[1772184013081,12.6414149,87.675,87.6,21.28729533]
[1772184013082,3.33187062,87.64,87.6,21.28729533]
[1772184014995,10.2677,87.651,87.603,21.27977273]
[1772184015196,3.33187062,87.64,87.603,21.27977273]
[1772184016988,10.2691,87.639,87.603,21.27977273]
[1772184017695,3.33187062,87.64,87.603,21.27977273]
[1772184019490,10.2692,87.638,87.603,21.27977273]
[1772184020093,10.27,87.631,87.603,21.27977273]
[1772184020298,3.33187062,87.63,87.587,21.28133336]
[1772184020496,3.33187062,87.63,87.589,21.28133336]
[1772184022100,3.33187062,87.63,87.591,21.28213001]
[1772184022300,10.2693,87.637,87.591,21.28213001]
[1772184022498,3.33187062,87.64,87.594,21.28213001]
[1772184022695,10.2683,87.646,87.594,21.28213001]
[1772184023100,3.33187062,87.64,87.594,21.28213001]
[1772184023902,3.33187062,87.64,87.601,31.57000281]
[1772184025001,3.33187062,87.64,87.602,21.2977024]
[1772184026405,3.33187062,87.65,87.61,21.29770239]
[1772184027298,10.2679,87.649,87.61,21.29770239]
[1772184027993,8.67677965,87.666,87.612,21.30151174]
[1772184028197,3.33187062,87.65,87.612,21.30151174]
[1772184030702,10.2667,87.66,87.612,21.30151174]
[1772184030901,13.59857062,87.66,87.612,21.30151174]
[1772184031101,3.33187062,87.65,87.612,21.30151174]
[1772184032904,10.268,87.649,87.612,21.30151174]
[1772184033106,3.33187062,87.65,87.612,21.30151174]
[1772184034808,10.267,87.657,87.612,21.30151174]
[1772184035010,3.33187062,87.65,87.612,21.30151174]
[1772184035407,3.33187062,87.66,87.612,21.30151174]
[1772184035612,10.2659,87.666,87.612,21.30151174]
[1772184036209,3.33187062,87.67,87.621,21.23866832]
[1772184037610,10.2667,87.659,87.621,21.23866832]
[1772184038210,10.2657,87.668,87.621,21.23866832]
[1772184038903,10.2657,87.668,87.61,3.33187062]
[1772184038904,10.2647,87.677,87.623,21.21948529]
[1772184040108,3.33187062,87.66,87.623,21.21948529]
[1772184040516,3.33187062,87.65,87.591,21.21948529]
[1772184040814,3.33187062,87.65,87.601,21.21948529]
[1772184041015,13.59977062,87.65,87.601,21.21948529]
[1772184041716,3.33187062,87.65,87.601,21.21948529]
[1772184043014,3.33187062,87.65,87.61,31.43008118]
[1772184043218,3.33254146,87.65,87.61,31.43008118]
[1772184043509,3.33254146,87.65,87.611,21.15768118]
[1772184044614,13.59914146,87.66,87.614,21.1576812]
[1772184044916,10.2657,87.668,87.614,21.1576812]
[1772184045313,10.2657,87.668,87.616,21.20933034]
[1772184045520,3.33254146,87.66,87.616,21.20933034]
[1772184046116,3.33254146,87.66,87.618,21.20933035]
[1772184047416,8.68354713,87.667,87.618,21.20933035]
[1772184047417,1.98574033,87.685,87.623,10.2708]
[1772184047618,10.2648,87.675,87.624,21.21050702]
[1772184048321,3.33254146,87.67,87.624,21.21050702]
[1772184048722,10.2658,87.668,87.624,21.21050702]
[1772184049918,3.33254146,87.71,87.651,21.21292789]
[1772184050117,3.33254146,87.69,87.651,21.21292789]
[1772184050315,3.33254146,87.68,87.631,21.21292789]
[1772184050714,10.2656,87.669,87.631,21.21292789]
[1772184051410,10.2647,87.676,87.633,10.2697]
[1772184051612,3.33254146,87.69,87.634,21.21845568]
[1772184051816,8.64509486,87.701,87.634,21.21845568]
[1772184052014,8.64509486,87.7,87.634,21.21845568]
[1772184052217,8.64509486,87.699,87.634,21.21845568]
[1772184052421,20.5204,87.715,87.634,21.21845568]
[1772184052422,3.33254146,87.69,87.634,21.21845568]
[1772184052619,3.33254146,87.7,87.645,21.21845569]
[1772184053323,3.33254146,87.7,87.64,3.33254146]
[1772184053324,10.2634,87.687,87.649,21.32939606]
[1772184055422,13.59684146,87.68,87.649,21.32939606]
[1772184058636,3.33254146,87.67,87.626,21.34937037]
[1772184059129,10.2666,87.66,87.626,21.34937037]
[1772184059331,8.63251591,87.695,87.626,21.34937037]
[1772184059528,3.33254146,87.69,87.631,21.35368863]
[1772184059734,10.2644,87.679,87.641,21.35368863]
[1772184060240,10.2635,87.687,87.641,21.35368863]
[1772184060829,3.33254146,87.7,87.641,21.35368863]
[1772184061034,3.33254146,87.69,87.641,21.35368863]
[1772184062034,10.2643,87.68,87.641,21.35368863]
[1772184062630,10.2634,87.688,87.643,21.32003065]
[1772184062832,3.33254146,87.7,87.643,21.32003065]
[1772184063037,3.33254146,87.7,87.651,21.31497658]
[1772184063438,10.2625,87.695,87.651,21.31497658]
[1772184063837,3.33254146,87.71,87.651,21.31497658]
[1772184064241,10.2615,87.704,87.66,21.31497657]
[1772184065342,10.2615,87.704,87.662,21.31231113]
[1772184066742,10.2615,87.704,87.664,21.31221623]
[1772184067844,10.2623,87.697,87.664,21.31221623]
[1772184068940,10.2614,87.705,87.664,21.31221623]
[1772184069642,3.33254146,87.7,87.664,21.31221623]
[1772184070435,3.33254146,87.7,87.664,31.57831623]
[1772184070641,3.33254146,87.7,87.665,21.31565343]
[1772184070842,3.33254146,87.71,87.667,21.31294721]
[1772184071947,10.2609,87.709,87.671,21.31294721]
[1772184072444,3.33254146,87.72,87.671,21.31294721]
[1772184073444,10.2592,87.724,87.687,21.31414016]
[1772184073746,3.33254146,87.74,87.691,21.31414016]
[1772184074649,10.63318898,87.78,87.658,20.5336]
[1772184074650,8.61209054,87.772,87.711,21.31414015]
[1772184074948,3.33254146,87.75,87.711,21.31414015]
[1772184075146,3.33254146,87.76,87.711,21.31414015]
[1772184076144,10.2537,87.771,87.711,21.31414015]
[1772184076343,8.61209054,87.794,87.721,21.28183541]
[1772184076344,3.33254146,87.77,87.721,21.28183541]
[1772184078043,10.2547,87.762,87.721,21.28183541]
[1772184079847,3.33254146,87.75,87.692,10.2628]
[1772184080454,3.33254146,87.75,87.7,3.33254146]
[1772184081358,3.33254146,87.74,87.683,10.2638]
[1772184081659,3.33254146,87.73,87.683,10.2638]
[1772184081860,3.33254146,87.73,87.684,12.34043705]
[1772184084056,3.33254146,87.7,87.669,12.32264762]
[1772184084254,3.33254146,87.68,87.616,12.32264762]
[1772184084456,3.33254146,87.63,87.597,12.32264762]
[1772184084658,159.6287,87.701,87.539,280.79377877]
[1772184084659,159.6874,87.669,87.539,280.79377877]
[1772184084957,159.6874,87.669,87.534,20.89522873]
[1772184084958,299.82869482,87.629,87.493,160.0073]
[1772184085262,3.33254146,87.61,87.55,3.33254146]
[1772184085458,3.33254146,87.61,87.56,3.33254146]
[1772184085764,3.33254146,87.61,87.55,3.33254146]
[1772184086263,3.33254146,87.6,87.55,3.33254146]
[1772184086457,3.33254146,87.59,87.54,3.33254146]
[1772184086659,3.33254146,87.56,87.511,4.4969406]
[1772184086853,3.33254146,87.57,87.511,4.4969406]
[1772184087254,299.82869482,87.629,87.521,4.4122086]
[1772184087255,8.94200539,87.59,87.521,4.4122086]
[1772184087965,8.94200539,87.55,87.483,4.4122086]
[1772184088558,10.2817,87.532,87.483,4.4122086]
[1772184088759,8.94200539,87.53,87.431,4.4122086]
[1772184089157,8.94200539,87.51,87.431,4.4122086]
[1772184089563,10.285,87.503,87.431,4.4122086]
[1772184090460,8.94200539,87.51,87.404,460.25206601]
[1772184090461,8.94200539,87.53,87.433,4.49562425]
[1772184091162,8.94200539,87.53,87.437,4.49754711]
[1772184091363,8.94200539,87.53,87.441,4.49754711]
[1772184091562,8.94200539,87.55,87.461,4.49754711]
[1772184091867,8.94200539,87.55,87.48,4.49754711]
[1772184092864,10.2746,87.592,87.481,4.41215525]
[1772184093068,8.94200539,87.58,87.481,4.41215525]
[1772184093362,8.94200539,87.58,87.48,8.94200539]
[1772184093363,8.94200539,87.58,87.482,4.41215525]
[1772184093764,159.7111,87.656,87.501,4.41215525]
[1772184093765,8.94200539,87.6,87.501,4.41215525]
[1772184094865,8.94200539,87.6,87.506,4.30691311]
[1772184095268,10.2729,87.607,87.506,4.30691311]
[1772184095571,8.94200539,87.54,87.456,4.30691311]
[1772184096568,10.2809,87.538,87.456,4.30691311]
[1772184098967,10.2848,87.506,87.43,4.31038597]
[1772184099472,8.94200539,87.54,87.43,4.31038597]
[1772184099473,8.94200539,87.5,87.43,4.31038597]
[1772184100166,10.2878,87.48,87.43,4.31038597]
[1772184101572,10.2861,87.494,87.43,4.31038597]
[1772184102979,8.94200539,87.52,87.43,4.31038597]
[1772184102980,10.2841,87.511,87.43,4.31038597]
[1772184103479,8.94200539,87.52,87.43,4.31038597]
[1772184103880,8.94200539,87.5,87.43,4.31038597]
[1772184104271,8.94200539,87.52,87.43,4.31038597]
[1772184104879,10.2854,87.5,87.43,4.31038597]
[1772184105376,10.2854,87.5,87.431,4.29528436]
[1772184106085,10.2839,87.513,87.434,4.29528436]
[1772184106286,8.95851649,87.52,87.434,4.29528436]
[1772184106877,10.2838,87.513,87.436,4.33357506]
[1772184107281,10.2838,87.513,87.441,4.33357506]
[1772184110489,10.2851,87.503,87.441,4.33357506]
[1772184111084,10.2862,87.493,87.441,4.33357506]
[1772184111282,8.95851649,87.52,87.441,4.33357506]
[1772184111685,8.95851649,87.54,87.445,4.38440423]
[1772184112789,8.95851649,87.55,87.451,4.38275287]
[1772184113692,10.2819,87.53,87.463,4.38275287]
[1772184114490,10.2819,87.53,87.465,4.38275287]
[1772184114685,8.95851649,87.55,87.465,4.38275287]
[1772184114884,10.2843,87.509,87.449,4.37575905]
[1772184116891,10.2843,87.509,87.451,4.34010868]
[1772184117292,10.2854,87.5,87.451,4.34010868]
[1772184118195,10.2843,87.509,87.451,4.34010868]
[1772184118390,8.95851649,87.55,87.451,4.34010868]
[1772184118896,8.95851649,87.55,87.468,4.34041378]
[1772184119792,8.95851649,87.55,87.469,4.34041378]
[1772184119999,8.95851649,87.55,87.43,8.95851649]
[1772184120000,159.8268,87.593,87.471,4.34041378]
[1772184120297,10.2815,87.533,87.471,4.34041378]
[1772184120493,8.95851649,87.55,87.471,4.34041378]
[1772184120898,10.2826,87.524,87.471,4.34041378]
[1772184121197,8.95851649,87.55,87.471,4.34041378]
[1772184121395,10.2836,87.516,87.471,4.34041378]
[1772184121595,10.2836,87.516,87.461,10.2899]
[1772184122290,8.95851649,87.53,87.455,4.35619509]
[1772184122490,5.14300262,87.528,87.437,4.35619509]
[1772184122697,5.14300262,87.528,87.444,4.3502611]
[1772184123106,8.95851649,87.53,87.444,4.3502611]
[1772184123400,8.95851649,87.53,87.446,4.3502611]
[1772184124610,10.2846,87.507,87.455,10.2906]
[1772184124796,10.2846,87.507,87.455,14.6408611]
[1772184124993,8.95851649,87.53,87.455,4.3502611]
[1772184125193,10.2834,87.518,87.464,4.46160983]
[1772184125702,20.5595,87.549,87.464,4.46160983]
[1772184125908,8.95851649,87.53,87.464,4.46160983]
[1772184126806,8.95851649,87.53,87.446,4.46277086]
[1772184127410,10.2857,87.497,87.447,4.46277086]
[1772184128307,10.2857,87.497,87.449,4.46277086]
[1772184128504,10.2848,87.506,87.449,4.46277086]
[1772184128703,8.95851649,87.53,87.449,4.46277086]
[1772184129306,19.35408644,87.529,87.449,4.46277086]
[1772184129505,8.95851649,87.51,87.432,4.4706002]
[1772184129703,8.98732256,87.509,87.432,4.4706002]
[1772184129903,8.98732256,87.508,87.432,4.4706002]
[1772184130108,8.98732256,87.507,87.432,4.4706002]
[1772184130296,8.98732256,87.506,87.432,4.4706002]
[1772184130502,8.98732256,87.505,87.432,4.4706002]
[1772184130702,8.98732256,87.504,87.432,4.4706002]
[1772184130902,10.2877,87.481,87.433,4.47530406]
[1772184131410,8.95851649,87.51,87.408,4.47530406]
[1772184131611,10.289,87.469,87.422,10.2945]
[1772184131816,10.289,87.469,87.408,4.47530406]
[1772184132910,10.289,87.469,87.414,4.47604918]
[1772184133112,10.2899,87.462,87.414,4.47604918]
[1772184133705,10.36676388,87.487,87.398,4.47604918]
[1772184133912,9.08997169,87.486,87.398,4.47604918]
[1772184134206,19.45673557,87.485,87.398,4.47604918]
[1772184134408,9.08997169,87.484,87.398,4.47604918]
[1772184134611,9.08997169,87.483,87.398,4.47604918]
[1772184134810,9.08997169,87.482,87.398,4.47604918]
[1772184135009,8.95851649,87.47,87.391,4.48391017]
[1772184135212,9.08997169,87.469,87.391,4.48391017]
[1772184135408,10.2913,87.45,87.391,4.48391017]
[1772184136215,10.2913,87.45,87.381,10.2993]
[1772184136420,10.2902,87.459,87.382,4.48391017]
[1772184136811,10.36676388,87.484,87.405,4.49114497]
[1772184137014,8.95851649,87.48,87.405,4.49114497]
[1772184137217,9.07815188,87.479,87.405,4.49114497]
[1772184137416,8.95851649,87.48,87.405,4.49114497]
[1772184137609,9.07613475,87.479,87.405,4.49114497]
[1772184137817,8.95851649,87.5,87.405,4.49114497]
[1772184138019,9.07613475,87.499,87.405,4.49114497]
[1772184138220,8.95851649,87.5,87.405,4.49114497]
[1772184138221,9.07613475,87.498,87.405,4.49114497]
[1772184138518,9.07613475,87.497,87.405,4.49114497]
[1772184138714,9.07613475,87.496,87.405,4.49114497]
[1772184138915,10.2882,87.477,87.416,4.47466328]
[1772184141022,10.2882,87.477,87.422,4.47034463]
[1772184141524,10.2891,87.469,87.422,4.47034463]
[1772184142017,8.95851649,87.48,87.391,4.47034463]
[1772184142218,10.2915,87.448,87.394,14.76814463]
[1772184143817,8.95851649,87.48,87.397,4.44581123]
[1772184144011,8.95851649,87.46,87.361,4.44581123]
[1772184144923,10.2928,87.437,87.384,4.4505492]
[1772184146123,8.95851649,87.46,87.361,4.4505492]
[1772184146520,10.2926,87.439,87.386,10.2987]
[1772184147218,10.2935,87.431,87.386,10.2987]
[1772184147414,10.2935,87.431,87.379,4.45756992]
[1772184148025,10.2926,87.439,87.389,4.45756992]
[1772184148922,10.2926,87.439,87.391,10.2981]
[1772184149223,8.95851649,87.46,87.361,4.45477892]
[1772184149813,8.95851649,87.44,87.361,4.45477892]
[1772184150723,8.95851649,87.44,87.375,4.45477892]
[1772184151425,8.95851649,87.44,87.341,4.45652669]
[1772184152526,10.2957,87.413,87.365,4.45652669]
[1772184153829,10.2946,87.422,87.367,4.43050992]
[1772184154619,8.95851649,87.46,87.373,4.43050992]
[1772184155328,304.35317814,87.462,87.381,4.48355559]
[1772184156826,304.35317814,87.462,87.405,4.47099885]
[1772184158128,10.29,87.461,87.411,10.2958]
[1772184158526,10.29,87.461,87.411,14.76679885]
[1772184159427,10.29,87.461,87.411,4.47099885]
[1772184160827,304.35317814,87.462,87.411,4.47099885]
[1772184161931,304.35317814,87.462,87.413,10.2956]
[1772184162932,10.2899,87.461,87.413,10.2956]
[1772184165532,304.35317814,87.462,87.396,4.43465209]
[1772184165934,8.96728967,87.45,87.381,4.43463093]
[1772184167026,10.2929,87.436,87.388,10.2985]
[1772184169336,10.2937,87.429,87.388,10.2985]
[1772184170640,10.2929,87.437,87.395,10.2977]
[1772184170847,10.2929,87.437,87.381,4.43463093]
[1772184171339,10.2935,87.431,87.381,4.43463093]
[1772184171938,10.2943,87.425,87.381,4.43463093]
[1772184173844,10.295,87.419,87.381,4.43463093]
[1772184175546,8.69678405,87.449,87.351,4.47037855]
[1772184176243,8.69678405,87.448,87.351,4.47037855]
[1772184176439,8.69678405,87.447,87.351,4.47037855]
[1772184176639,8.96728967,87.45,87.351,4.47037855]
[1772184176942,8.69423337,87.449,87.372,4.47712184]
[1772184177136,8.69423337,87.448,87.372,4.47712184]
[1772184177341,8.69423337,87.447,87.372,4.47712184]
[1772184177646,8.69423337,87.446,87.372,4.47712184]
[1772184177843,8.96728967,87.45,87.372,4.47712184]
[1772184178043,10.2956,87.414,87.372,4.47712184]
[1772184178746,10.2939,87.428,87.372,4.47712184]
[1772184180548,10.2939,87.428,87.374,4.47862291]
[1772184181842,10.2939,87.428,87.376,4.47414332]
[1772184182045,8.69692534,87.446,87.376,4.47414332]
[1772184182244,8.69668007,87.461,87.376,4.47414332]
[1772184182443,8.69668007,87.46,87.402,4.47414332]
[1772184182647,8.69686051,87.459,87.402,4.47414332]
[1772184182950,8.69686051,87.461,87.402,4.47414332]
[1772184183155,8.96728967,87.45,87.381,4.47079704]